bitfinex/quotes_SOLUSD_20240624
["timestamp","ask_amount","ask_price","bid_price","bid_amount"]
[1719262278715,6.1449,127.48,127.38,30.96]
[1719262278918,6.1449,127.48,127.36,288.00148369]
[1719262279118,6.1449,127.48,127.38,7.8504]
[1719262279339,6.1449,127.48,127.39,0.17]
[1719262279540,6.1449,127.48,127.4,19.6223]
[1719262279863,6.1449,127.48,127.41,8.0182]
[1719262280042,6.1449,127.48,127.41,8.0184]
[1719262280216,6.1449,127.48,127.42,0.17]
[1719262280419,6.1449,127.48,127.41,0.34]
[1719262280725,6.1449,127.48,127.4,19.6223]
[1719262281027,6.1449,127.48,127.39,0.34]
[1719262281224,6.1449,127.48,127.39,20.34]
[1719262281548,6.1449,127.48,127.39,28.1897]
[1719262281847,6.1449,127.48,127.4,7.849]
[1719262283552,6.1449,127.48,127.41,7.8482]
[1719262284125,6.1449,127.48,127.4,19.6226]
[1719262284321,6.1449,127.48,127.39,20.34]
[1719262284646,6.1449,127.48,127.39,28.1898]
[1719262284823,6.1449,127.48,127.39,8.1898]
[1719262285147,6.1449,127.48,127.4,7.8492]
[1719262285828,6.1449,127.48,127.39,27.814]
[1719262286335,6.1449,127.48,127.39,27.8141]
[1719262286725,16.5205,127.47,127.38,4.07213137]
[1719262286928,6.6563,127.46,127.36,290.65400331]
[1719262287444,15.2281,127.45,127.36,19.6281]
[1719262287621,15.2281,127.45,127.36,27.4797]
[1719262287825,15.2281,127.45,127.37,7.851]
[1719262288625,15.2281,127.45,127.36,27.4798]
[1719262288830,15.2281,127.45,127.36,19.6281]
[1719262289033,15.2281,127.45,127.35,7.8521]
[1719262289034,6.2315,127.44,127.35,7.8521]
[1719262289433,6.2315,127.44,127.34,7.8527]
[1719262289755,6.2315,127.44,127.35,19.6303]
[1719262290248,6.2315,127.44,127.35,27.4821]
[1719262290746,6.2315,127.44,127.35,27.4826]
[1719262291156,6.2315,127.44,127.35,19.6303]
[1719262291335,6.2315,127.44,127.4,7.8491]
[1719262291529,6.2315,127.44,127.39,19.6243]
[1719262292037,6.2315,127.44,127.39,27.4738]
[1719262292249,6.2315,127.44,127.39,19.6243]
[1719262292449,6.2315,127.44,127.39,27.4741]
[1719262293031,6.2315,127.44,127.36,24.04270331]
[1719262293329,6.2315,127.44,127.38,7.8503]
[1719262294255,6.2315,127.44,127.39,8.1896]
[1719262296651,6.2315,127.44,127.4,19.623]
[1719262296862,6.2315,127.44,127.41,0.34]
[1719262297155,6.2315,127.44,127.41,8.0182]
[1719262297457,6.2315,127.44,127.41,0.17]
[1719262297640,6.2315,127.44,127.41,8.1885]
[1719262298031,6.2315,127.44,127.41,8.0185]
[1719262298240,6.2315,127.44,127.38,30.96]
[1719262298452,6.2315,127.44,127.39,39.9643]
[1719262298663,6.2315,127.44,127.41,7.8485]
[1719262300162,7.8414,127.53,127.41,7.8485]
[1719262300163,6.2115,127.47,127.42,0.34]
[1719262300456,6.2115,127.47,127.43,27.4653]
[1719262300643,15.2204,127.48,127.45,7.8461]
[1719262300956,15.2204,127.48,127.44,8.1865]
[1719262301631,15.2204,127.48,127.45,7.8461]
[1719262301849,15.2204,127.48,127.44,8.1866]
[1719262302262,15.2204,127.48,127.45,7.8461]
[1719262302432,15.2204,127.48,127.46,0.17]
[1719262302848,6.5508,127.5,127.46,8.0155]
[1719262303160,6.5508,127.5,127.46,8.0153]
[1719262303358,6.5508,127.5,127.46,0.17]
[1719262304041,6.5508,127.5,127.46,8.0154]
[1719262304254,6.5508,127.5,127.46,0.17]
[1719262304646,6.5508,127.5,127.44,20.0]
[1719262304851,6.5508,127.5,127.44,7.8463]
[1719262305156,6.5508,127.5,127.43,8.187]
[1719262305367,6.5508,127.5,127.44,20.0]
[1719262305530,6.5508,127.5,127.44,27.8468]
[1719262305737,6.5508,127.5,127.45,0.17]
[1719262305935,6.5508,127.5,127.45,8.0161]
[1719262306138,6.5508,127.5,127.45,0.17]
[1719262306355,6.5508,127.5,127.44,39.6167]
[1719262306662,6.5508,127.5,127.44,26.6]
[1719262307042,6.5508,127.5,127.44,34.4466]
[1719262307231,6.5508,127.5,127.44,26.6]
[1719262310150,6.5508,127.5,127.43,27.6353]
[1719262310346,6.5508,127.5,127.43,54.2353]
[1719262310948,6.5508,127.5,127.43,26.6]
[1719262311343,6.5508,127.5,127.44,8.0167]
[1719262311556,6.5508,127.5,127.44,0.17]
[1719262313265,6.5508,127.5,127.41,11.92097423]
[1719262313445,6.5508,127.5,127.42,20.0]
[1719262313767,6.5508,127.5,127.41,26.6]
[1719262314063,16.1427,127.49,127.41,26.6]
[1719262314268,16.1427,127.49,127.41,34.4486]
[1719262315345,16.1427,127.49,127.41,26.6]
[1719262315546,16.1427,127.49,127.41,54.0692]
[1719262315746,16.1427,127.49,127.41,46.2207]
[1719262315973,16.1427,127.49,127.41,58.14137423]
[1719262316273,16.1427,127.49,127.41,50.29317423]
[1719262316447,16.1427,127.49,127.42,11.92037423]
[1719262316840,16.1427,127.49,127.42,4.07247423]
[1719262317074,16.1427,127.49,127.41,30.67247423]
[1719262317253,6.1809,127.48,127.42,4.07247423]
[1719262317864,15.5714,127.47,127.42,4.07247423]
[1719262318062,15.5714,127.47,127.4,30.67247423]
[1719262318466,15.5714,127.47,127.4,38.52157423]
[1719262318668,15.5714,127.47,127.41,4.07247423]
[1719262320473,15.5714,127.47,127.4,30.67247423]
[1719262321683,15.353,127.45,127.4,4.09920658]
[1719262321856,6.1616,127.44,127.39,4.09971009]
[1719262322379,6.1616,127.44,127.38,4.09971009]
[1719262322574,15.353,127.43,127.38,4.09971009]
[1719262322756,15.353,127.43,127.37,7.851]
[1719262322757,15.353,127.43,127.39,30.69971009]
[1719262322962,15.353,127.43,127.4,4.09971009]
[1719262325952,26.6,127.53,127.4,4.09971009]
[1719262325953,22.3516,127.47,127.41,30.23646797]
[1719262326154,22.3516,127.47,127.43,4.10002829]
[1719262326455,22.3516,127.47,127.43,30.70002829]
[1719262326880,22.3516,127.47,127.44,4.10002829]
[1719262327868,26.6,127.57,127.47,227.6484]
[1719262327869,7.8394,127.56,127.47,227.6484]
[1719262328966,0.17,127.55,127.47,227.6484]
[1719262329567,0.34,127.55,127.47,227.6484]
[1719262330380,8.18108005,127.58,127.47,235.4933]
[1719262330590,7.8364,127.61,127.49,7.8436]
[1719262330757,21.5293,127.6,127.5,7.843]
[1719262331157,21.5293,127.6,127.51,26.6]
[1719262331378,21.5293,127.6,127.52,20.0]
[1719262332653,21.5293,127.6,127.53,26.6]
[1719262334484,0.17,127.59,127.5,4.09883505]
[1719262334686,16.6553,127.55,127.47,231.74723505]
[1719262334990,6.2439,127.54,127.47,227.6484]
[1719262336465,6.2439,127.54,127.47,254.2484]
[1719262336672,6.2439,127.54,127.48,7.8441]
[1719262336966,6.2439,127.54,127.47,227.6484]
[1719262337280,6.2439,127.54,127.48,26.6]
[1719262337586,6.2439,127.54,127.48,26.77]
[1719262337893,6.2439,127.54,127.48,26.6]
[1719262340175,6.2439,127.54,127.48,34.4442]
[1719262341284,6.2439,127.54,127.49,7.8436]
[1719262341482,6.2439,127.54,127.5,34.4429]
[1719262342285,6.2439,127.54,127.5,26.6]
[1719262342480,6.2439,127.54,127.5,34.443]
[1719262342785,16.6553,127.55,127.52,26.6]
[1719262343278,6.6541,127.57,127.52,34.4418]
[1719262344486,6.6541,127.57,127.54,26.6]
[1719262345556,6.6541,127.57,127.52,26.6]
[1719262345760,6.6541,127.57,127.5,26.6]
[1719262346091,6.6541,127.57,127.49,46.2089]
[1719262346266,6.6541,127.57,127.49,54.0526]
[1719262346962,6.6541,127.57,127.49,46.2089]
[1719262347163,6.6541,127.57,127.49,26.6]
[1719262348306,6.3088,127.6,127.55,7.8398]
[1719262348579,6.3088,127.6,127.54,34.4406]
[1719262348996,6.3088,127.6,127.56,26.6]
[1719262349288,6.3088,127.6,127.53,27.4437]
[1719262349585,6.3088,127.6,127.55,26.6]
[1719262349785,6.3088,127.6,127.52,4.42692024]
[1719262349974,6.3088,127.6,127.53,26.6]
[1719262350786,6.3088,127.6,127.51,7.8424]
[1719262352276,15.7508,127.59,127.5,39.6067]
[1719262352486,15.7508,127.59,127.5,47.4497]
[1719262354064,15.7508,127.59,127.51,7.8422]
[1719262354792,15.7508,127.59,127.52,27.6162]
[1719262354977,15.7508,127.59,127.52,47.7862]
[1719262355290,15.7508,127.59,127.54,7.8405]
[1719262355869,15.7508,127.59,127.54,27.4416]
[1719262356379,15.7508,127.59,127.53,7.8412]
[1719262356687,15.7508,127.59,127.54,8.0106]
[1719262357191,15.7508,127.59,127.51,4.0731211]
[1719262357496,15.7508,127.59,127.52,0.34]
[1719262357697,15.7508,127.59,127.52,7.8414]
[1719262357994,15.7508,127.59,127.53,20.0]
[1719262358289,15.7508,127.59,127.53,27.8408]
[1719262359187,15.7508,127.59,127.54,8.0106]
[1719262359991,15.7508,127.59,127.53,27.841]
[1719262360166,15.7508,127.59,127.53,27.8412]
[1719262361475,15.7508,127.59,127.53,20.0]
[1719262361885,15.7508,127.59,127.53,27.841]
[1719262362431,15.7508,127.59,127.54,8.0105]
[1719262362981,15.7508,127.59,127.54,7.8405]
[1719262363796,15.7508,127.59,127.53,27.841]
[1719262364001,15.7508,127.59,127.54,0.17]
[1719262364502,15.7508,127.59,127.54,8.0105]
[1719262365005,15.7508,127.59,127.53,20.0]
[1719262365174,15.7508,127.59,127.53,27.8411]
[1719262365372,15.7508,127.59,127.53,20.0]
[1719262365981,15.7508,127.59,127.53,27.8412]
[1719262366178,15.7508,127.59,127.55,7.8398]
[1719262370690,15.7508,127.59,127.55,34.3898]
[1719262371093,15.7508,127.59,127.56,7.8392]
[1719262371402,15.7508,127.59,127.55,34.3898]
[1719262371700,15.7508,127.59,127.56,20.0]
[1719262372096,15.7508,127.59,127.56,27.8394]
[1719262373690,15.7508,127.59,127.56,47.4379]
[1719262374981,15.7508,127.59,127.57,7.8387]
[1719262376296,6.3088,127.6,127.59,7.8376]
[1719262376499,6.3088,127.6,127.57,26.55]
[1719262376500,6.3088,127.6,127.58,27.4333]
[1719262376707,16.2132,127.62,127.58,27.4333]
[1719262378187,16.2132,127.62,127.6,7.8369]
[1719262378796,22.5366,127.72,127.59,26.55]
[1719262379000,22.5366,127.72,127.63,34.385]
[1719262379204,22.5366,127.72,127.64,7.8344]
[1719262379410,22.5366,127.72,127.66,7.833]
[1719262379580,22.5366,127.72,127.65,26.55]
[1719262379910,22.5366,127.72,127.68,19.5794]
[1719262380081,22.5366,127.72,127.67,34.3825]
[1719262380282,22.5366,127.72,127.67,26.55]
[1719262382613,22.5366,127.72,127.65,53.9674]
[1719262382820,22.5366,127.72,127.63,4.07090385]
[1719262382996,22.5366,127.72,127.64,7.834]
[1719262383320,22.5366,127.72,127.66,7.8332]
[1719262383626,22.5366,127.72,127.65,7.8337]
[1719262384828,22.5366,127.72,127.71,7.8302]
[1719262385117,22.5366,127.72,127.69,19.5781]
[1719262385499,21.2595,127.75,127.69,19.5781]
[1719262385693,21.2595,127.75,127.69,27.4094]
[1719262385920,21.2595,127.75,127.68,26.55]
[1719262386822,21.2595,127.75,127.68,34.382]
[1719262387302,21.2595,127.75,127.69,0.17]
[1719262387505,21.2595,127.75,127.69,8.1709]
[1719262387719,21.2595,127.75,127.7,7.8308]
[1719262387927,21.2595,127.75,127.7,34.3808]
[1719262388418,21.2595,127.75,127.69,8.1712]
[1719262388628,21.2595,127.75,127.7,26.55]
[1719262389199,21.2595,127.75,127.71,7.83]
[1719262389423,21.2595,127.75,127.72,34.3795]
[1719262389597,21.2595,127.75,127.72,26.55]
[1719262390999,21.2595,127.75,127.68,7.8319]
[1719262391230,26.55,127.84,127.7,100.0]
[1719262391231,22.8053,127.82,127.7,100.0]
[1719262391518,22.8053,127.82,127.75,7.8272]
[1719262391828,22.8053,127.82,127.75,34.3772]
[1719262392818,22.8053,127.82,127.75,26.55]
[1719262393525,22.8053,127.82,127.73,26.55]
[1719262394422,0.17,127.81,127.73,26.55]
[1719262394598,0.34,127.81,127.71,26.55]
[1719262394800,6.2977,127.79,127.68,19.5791]
[1719262395027,6.2977,127.77,127.68,26.55]
[1719262395241,6.2977,127.77,127.68,34.382]
[1719262395699,6.2977,127.77,127.68,34.3818]
[1719262396316,6.2977,127.75,127.66,26.55]
[1719262396515,15.1492,127.74,127.66,26.55]
[1719262396733,6.4052,127.73,127.62,285.65]
[1719262397036,6.4052,127.73,127.64,26.55]
[1719262397037,15.3014,127.72,127.64,26.55]
[1719262397539,6.4073,127.71,127.62,298.76832586]
[1719262398722,6.4073,127.71,127.63,7.8351]
[1719262399313,6.4073,127.71,127.62,272.21832586]
[1719262399751,6.4073,127.71,127.62,264.38272586]
[1719262400414,6.4073,127.71,127.65,7.8339]
[1719262400615,6.4073,127.71,127.64,7.8344]
[1719262401845,6.4073,127.71,127.65,19.5841]
[1719262402012,6.4073,127.71,127.65,27.4178]
[1719262402715,6.4073,127.71,127.65,19.5841]
[1719262403217,6.4073,127.71,127.63,8.175]
[1719262403435,15.4411,127.7,127.62,5.28272586]
[1719262403646,15.4411,127.68,127.59,19.5928]
[1719262403937,15.4411,127.68,127.59,27.4302]
[1719262404136,15.4411,127.68,127.59,19.5928]
[1719262404842,15.4411,127.68,127.56,436.7811]
[1719262405042,15.4411,127.68,127.6,7.8365]
[1719262405217,15.4411,127.68,127.59,7.8374]
[1719262405541,15.4411,127.68,127.6,7.8367]
[1719262406134,15.4411,127.68,127.61,0.17]
[1719262406348,15.4411,127.68,127.61,28.0062]
[1719262406743,15.4411,127.68,127.61,20.0]
[1719262407038,15.4411,127.68,127.61,27.8362]
[1719262407348,15.4411,127.68,127.62,8.1756]
[1719262407520,14.9411,127.68,127.62,8.1756]
[1719262407840,14.9411,127.68,127.61,20.0]
[1719262408043,14.9411,127.68,127.61,27.8362]
[1719262408223,14.9411,127.68,127.62,8.0057]
[1719262408425,14.9411,127.68,127.62,0.17]
[1719262408746,14.9411,127.68,127.65,7.8335]
[1719262409118,6.2405,127.74,127.69,7.831]
[1719262409322,6.2405,127.74,127.7,27.8303]
[1719262409747,6.2405,127.74,127.7,39.5763]
[1719262409923,6.2405,127.74,127.7,47.4069]
[1719262410118,6.2405,127.74,127.7,39.5763]
[1719262410324,6.0786,127.84,127.73,7.8288]
[1719262410623,6.0786,127.84,127.71,0.34]
[1719262410624,15.0036,127.83,127.75,7.8274]
[1719262411128,15.0036,127.83,127.76,7.8271]
[1719262411532,15.0036,127.83,127.77,7.8264]
[1719262411748,15.0036,127.83,127.76,19.5668]
[1719262412226,15.0036,127.83,127.75,7.9971]
[1719262412462,15.0036,127.83,127.76,0.17]
[1719262412842,15.0036,127.83,127.76,0.34]
[1719262413144,15.0036,127.83,127.77,19.5651]
[1719262413340,6.0786,127.84,127.78,20.17]
[1719262413550,15.8106,127.87,127.82,7.823]
[1719262414047,15.8106,127.87,127.81,19.5592]
[1719262414237,15.8106,127.87,127.82,20.0]
[1719262414834,15.8106,127.87,127.79,0.17]
[1719262415059,15.8106,127.87,127.79,20.34]
[1719262415348,15.8106,127.87,127.82,7.8231]
[1719262415933,15.8106,127.87,127.81,8.164]
[1719262416324,15.8106,127.87,127.81,7.824]
[1719262416530,15.8106,127.87,127.8,19.5608]
[1719262416851,15.8106,127.87,127.79,19.5626]
[1719262417051,15.8106,127.87,127.78,20.0]
[1719262417226,15.8106,127.87,127.77,398.2264]
[1719262417429,15.8106,127.87,127.77,390.4]
[1719262417748,23.6311,127.87,127.74,7.8278]
[1719262417922,6.4153,127.86,127.75,20.0]
[1719262418126,6.4153,127.86,127.76,7.8267]
[1719262418458,6.4153,127.86,127.76,7.8266]
[1719262418755,6.4153,127.86,127.75,19.5684]
[1719262419156,6.4153,127.86,127.76,7.997]
[1719262419334,6.4153,127.86,127.76,7.827]
[1719262419542,6.4153,127.86,127.76,7.8266]
[1719262420053,6.3673,127.84,127.75,19.5684]
[1719262420347,6.3673,127.84,127.75,27.3957]
[1719262420541,6.3673,127.84,127.77,19.5656]
[1719262420743,6.3673,127.84,127.78,7.8257]
[1719262421051,6.3673,127.84,127.77,19.5656]
[1719262421232,6.3673,127.84,127.79,7.8248]
[1719262421829,6.3673,127.84,127.78,8.1657]
[1719262422030,6.3673,127.84,127.78,0.17]
[1719262422226,6.3673,127.84,127.75,398.2271]
[1719262422431,6.3673,127.84,127.76,27.827]
[1719262423027,6.3673,127.84,127.76,20.0]
[1719262423428,6.3673,127.84,127.76,39.5673]
[1719262423629,6.3673,127.84,127.76,47.3943]
[1719262424632,6.3673,127.84,127.75,390.4]
[1719262424963,22.4747,127.83,127.75,390.4]
[1719262425158,6.6073,127.82,127.75,390.4]
[1719262427434,24.0305,127.83,127.66,65.12771852]
[1719262427435,6.5906,127.8,127.68,58.3509]
[1719262427645,6.5906,127.78,127.68,50.5193]
[1719262427843,6.5906,127.78,127.69,7.8313]
[1719262428042,6.5906,127.78,127.7,7.8306]
[1719262428243,6.5906,127.78,127.68,19.5793]
[1719262428858,6.5906,127.78,127.67,7.8324]
[1719262430782,16.6585,127.77,127.67,7.8324]
[1719262431053,16.6585,127.77,127.65,58.3572]
[1719262431054,6.3673,127.76,127.65,58.3572]
[1719262431271,6.5373,127.76,127.66,20.0]
[1719262431434,15.8314,127.75,127.66,20.0]
[1719262432441,15.8314,127.75,127.66,27.833]
[1719262432934,15.8314,127.75,127.66,7.833]
[1719262433140,6.2166,127.74,127.63,403.78169614]
[1719262433336,6.2166,127.74,127.64,20.0]
[1719262434037,6.2166,127.74,127.64,27.8344]
[1719262435068,6.2166,127.74,127.65,7.8338]
[1719262435269,6.2166,127.74,127.66,7.8332]
[1719262435558,6.2166,127.74,127.66,7.8331]
[1719262435862,6.2166,127.74,127.66,19.5828]
[1719262436558,6.2166,127.74,127.66,27.416]
[1719262437157,6.2166,127.74,127.64,20.0]
[1719262437335,16.3658,127.73,127.64,27.8344]
[1719262437538,16.3658,127.73,127.65,7.8337]
[1719262438143,16.3658,127.73,127.64,27.8344]
[1719262439038,16.3658,127.73,127.63,19.927]
[1719262439245,16.3658,127.73,127.63,27.4221]
[1719262440357,16.3658,127.73,127.63,19.587]
[1719262441239,16.3658,127.73,127.65,27.418]
[1719262441440,16.3658,127.73,127.68,19.5799]
[1719262441649,16.3658,127.73,127.7,19.5766]
[1719262442078,16.3658,127.73,127.7,27.4073]
[1719262442357,16.3658,127.73,127.66,390.4]
[1719262442544,16.3658,127.73,127.69,7.8313]
[1719262442746,16.3658,127.73,127.67,0.34]
[1719262443053,16.3658,127.73,127.69,27.4091]
[1719262443249,16.3658,127.73,127.69,19.5781]
[1719262443457,6.2166,127.74,127.69,27.4094]
[1719262443776,6.2166,127.74,127.68,7.832]
[1719262443948,6.2166,127.74,127.69,20.0]
[1719262444543,6.2166,127.74,127.68,19.5796]
[1719262444747,6.2166,127.74,127.69,28.1712]
[1719262445865,6.2166,127.74,127.67,7.8326]
[1719262446049,6.2166,127.74,127.68,20.0]
[1719262446757,6.2166,127.74,127.69,19.5782]
[1719262446965,6.2166,127.74,127.69,27.4095]
[1719262447267,6.2166,127.74,127.69,19.5782]
[1719262447482,6.2166,127.74,127.7,0.17]
[1719262447653,6.2166,127.74,127.68,20.0]
[1719262447855,6.2166,127.74,127.67,20.0]
[1719262448155,6.2166,127.74,127.68,0.17]
[1719262448472,6.2166,127.74,127.68,8.0019]
[1719262448845,6.2166,127.74,127.69,7.8313]
[1719262449249,6.2166,127.74,127.66,30.94]
[1719262449488,6.2896,127.72,127.61,406.7658]
[1719262449770,6.2896,127.72,127.61,27.4258]
[1719262449949,6.2896,127.72,127.62,7.8356]
[1719262450344,6.2896,127.72,127.63,7.8351]
[1719262451368,6.2896,127.72,127.63,19.5873]
[1719262451573,6.2896,127.72,127.64,7.8344]
[1719262452153,6.2896,127.72,127.65,19.5838]
[1719262452381,6.2896,127.72,127.64,0.17]
[1719262452682,6.2896,127.72,127.65,7.8337]
[1719262453246,6.2896,127.72,127.64,8.1743]
[1719262453766,6.2896,127.72,127.63,50.5271]
[1719262453980,6.2896,127.72,127.64,20.0]
[1719262454666,6.2896,127.72,127.62,0.17]
[1719262454861,15.2482,127.71,127.61,33.19149122]
[1719262455176,15.2482,127.71,127.62,27.8357]
[1719262455470,15.2482,127.71,127.62,20.0]
[1719262456376,15.2482,127.71,127.61,7.8362]
[1719262456572,15.2482,127.71,127.62,7.8357]
[1719262457178,15.2482,127.71,127.61,7.8362]
[1719262457964,15.2482,127.71,127.62,7.8357]
[1719262458453,15.2482,127.71,127.64,7.8342]
[1719262458757,15.2482,127.71,127.64,19.5858]
[1719262459264,15.2482,127.71,127.61,27.4258]
[1719262459571,15.2482,127.71,127.62,28.1756]
[1719262459778,15.2482,127.71,127.63,7.835]
[1719262460002,15.2482,127.71,127.62,27.8355]
[1719262460158,15.2482,127.71,127.61,27.4261]
[1719262460578,6.6636,127.7,127.61,27.4261]
[1719262460772,6.6636,127.7,127.62,7.8356]
[1719262460977,6.6636,127.7,127.62,0.17]
[1719262461177,6.6636,127.7,127.63,7.835]
[1719262461480,6.6636,127.7,127.62,0.34]
[1719262461481,6.6636,127.7,127.62,0.17]
[1719262461686,6.6636,127.7,127.62,7.8356]
[1719262462376,6.6636,127.7,127.63,8.0051]
[1719262462887,6.6636,127.7,127.63,0.17]
[1719262463064,6.6636,127.7,127.66,7.8331]
[1719262463585,6.6636,127.7,127.65,19.5841]
[1719262463883,6.6636,127.7,127.64,8.174]
[1719262464077,6.6636,127.7,127.65,20.34]
[1719262464288,6.6636,127.7,127.65,20.0]
[1719262464769,6.6636,127.7,127.65,27.8339]
[1719262466279,6.6636,127.7,127.65,20.0]
[1719262467776,6.6636,127.7,127.64,54.2703]
[1719262468789,6.6636,127.7,127.65,7.8338]
[1719262471483,6.6636,127.7,127.64,4.07434527]
[1719262471683,15.8491,127.69,127.6,30.58434527]
[1719262471882,15.8491,127.69,127.59,266.9373]
[1719262471883,15.8491,127.69,127.59,4.07434527]
[1719262472072,15.8491,127.69,127.59,34.3474]
[1719262472387,15.8491,127.69,127.59,38.42174527]
[1719262472600,15.8491,127.69,127.59,34.3474]
[1719262473186,6.5261,127.68,127.59,34.3474]
[1719262473374,6.5261,127.68,127.59,38.42890517]
[1719262473577,6.5261,127.68,127.6,7.8367]
[1719262473881,6.5261,127.68,127.62,7.8356]
[1719262474284,6.5261,127.68,127.62,19.5891]
[1719262475290,6.5261,127.68,127.63,30.93150517]
[1719262475684,6.5261,127.68,127.64,23.66720517]
[1719262475896,6.5261,127.68,127.65,0.17]
[1719262476191,6.5261,127.68,127.64,31.50120517]
[1719262476391,6.5261,127.68,127.65,4.42150517]
[1719262476771,6.5261,127.68,127.65,30.93150517]
[1719262477085,19.5621,127.8,127.65,30.93150517]
[1719262477086,21.6219,127.72,127.7,7.8307]
[1719262477461,59.333,127.83,127.7,7.8307]
[1719262477668,6.4155,127.8,127.7,11.91501733]
[1719262478084,6.4155,127.8,127.71,4.08431733]
[1719262478295,16.5379,127.79,127.71,4.08431733]
[1719262478984,16.5379,127.79,127.71,4.08595902]
[1719262479391,6.4422,127.78,127.71,4.08595902]
[1719262479693,15.6497,127.77,127.7,4.08595902]
[1719262479986,15.6497,127.77,127.71,4.08595902]
[1719262480192,15.6497,127.77,127.71,30.59595902]
[1719262480402,15.6497,127.77,127.72,7.8295]
[1719262480696,15.6497,127.77,127.72,4.08595902]
[1719262480874,15.6497,127.77,127.7,4.08595902]
[1719262481075,6.549,127.76,127.69,4.08595902]
[1719262481276,6.549,127.76,127.68,4.08595902]
[1719262481475,6.549,127.76,127.67,4.08595902]
[1719262481700,16.4137,127.75,127.67,4.08595902]
[1719262482876,16.6298,127.73,127.67,4.08595902]
[1719262483079,16.6298,127.73,127.65,4.08595902]
[1719262483277,6.0159,127.72,127.64,4.08595902]
[1719262483478,15.1146,127.71,127.63,4.08595902]
[1719262483790,6.5048,127.7,127.63,4.08595902]
[1719262484171,6.5048,127.7,127.62,4.08595902]
[1719262484381,0.17,127.69,127.61,4.08595902]
[1719262484582,15.315,127.68,127.61,4.08595902]
[1719262484890,15.315,127.68,127.6,4.08595902]
[1719262485100,15.315,127.68,127.59,4.08595902]
[1719262485101,6.1339,127.67,127.59,4.08595902]
[1719262485273,6.3039,127.67,127.58,4.08595902]
[1719262485475,6.3039,127.67,127.58,11.92405902]
[1719262485793,6.3039,127.67,127.58,4.08595902]
[1719262486178,0.17,127.66,127.58,4.08595902]
[1719262486387,0.17,127.66,127.57,31.52035902]
[1719262486586,0.17,127.66,127.58,11.92405902]
[1719262486798,6.3039,127.67,127.58,11.92405902]
[1719262486997,6.3039,127.67,127.58,7.8381]
[1719262487591,6.2668,127.65,127.57,4.08595902]
[1719262487890,6.2668,127.63,127.55,4.08595902]
[1719262488075,6.2668,127.63,127.54,4.08595902]
[1719262488273,0.34,127.62,127.53,4.08595902]
[1719262488499,0.34,127.62,127.53,11.92715902]
[1719262488688,0.34,127.62,127.53,4.08595902]
[1719262489200,21.673,127.61,127.53,4.08595902]
[1719262489495,21.673,127.61,127.53,7.8412]
[1719262489977,21.673,127.61,127.52,4.08595902]
[1719262490175,21.673,127.61,127.51,23.69125902]
[1719262490506,21.673,127.61,127.53,7.8412]
[1719262490796,21.673,127.61,127.52,7.8415]
[1719262490978,21.673,127.61,127.53,19.6026]
[1719262491181,21.673,127.61,127.55,7.84]
[1719262491389,21.673,127.61,127.53,19.6026]
[1719262491390,21.673,127.61,127.54,7.8405]
[1719262492400,21.673,127.61,127.53,27.4437]
[1719262493290,21.673,127.61,127.53,19.6026]
[1719262493795,21.673,127.61,127.52,7.8417]
[1719262493998,21.673,127.61,127.5,251.34105902]